[Event "Titled Tuesday Blitz February 21 Early 2023"]
[White "Kouskoutis, Georgios-Alexandros"]
[Black "Kvaloy, Aksel Bu"]
[WhiteFideId "4234049"]
[BlackFideId "1528815"]
[WhiteElo "2295"]
[BlackElo "2321"]
[Result "0-1"]
[Round "08"]
[TimeControl "180+2"]
[Date "2023.02.21"]
[WhiteClock "0:00:11"]
[BlackClock "0:00:34"]

1. c4 {[%clk 0:03:00]}  e5 {[%clk 0:02:58]} 2. g3 {[%clk 0:02:58]}  Nf6 {[%clk 0:02:57]} 3. Bg2 {[%clk 0:02:58]}  c6 {[%clk 0:02:58]} 4. Nf3 {[%clk 0:02:48]}  e4 {[%clk 0:02:58]} 5. Nd4 {[%clk 0:02:44]}  Qb6 {[%clk 0:02:58]} 6. Nc2 {[%clk 0:02:33]}  Bc5 {[%clk 0:02:53]} 7. O-O {[%clk 0:02:18]}  O-O {[%clk 0:02:42]} 8. Nc3 {[%clk 0:02:04]}  d5 {[%clk 0:02:32]} 9. cxd5 {[%clk 0:02:05]}  cxd5 {[%clk 0:02:32]} 10. d4 {[%clk 0:02:05]}  Be7 {[%clk 0:02:25]} 11. Bg5 {[%clk 0:02:00]}  Be6 {[%clk 0:02:22]} 12. Ne3 {[%clk 0:01:49]}  Nbd7 {[%clk 0:02:21]} 13. Qd2 {[%clk 0:01:04]}  h6 {[%clk 0:02:19]} 14. Bxf6 {[%clk 0:01:02]}  Nxf6 {[%clk 0:02:20]} 15. Rfc1 {[%clk 0:00:59]}  Rfc8 {[%clk 0:02:16]} 16. Na4 {[%clk 0:00:45]}  Qd8 {[%clk 0:02:11]} 17. Rxc8 {[%clk 0:00:38]}  Rxc8 {[%clk 0:02:10]} 18. Rc1 {[%clk 0:00:39]}  b6 {[%clk 0:02:05]} 19. Nd1 {[%clk 0:00:29]}  Qd7 {[%clk 0:01:59]} 20. Rxc8+ {[%clk 0:00:26]}  Qxc8 {[%clk 0:02:00]} 21. Nac3 {[%clk 0:00:25]}  a6 {[%clk 0:01:57]} 22. a3 {[%clk 0:00:16]}  b5 {[%clk 0:01:57]} 23. e3 {[%clk 0:00:15]}  h5 {[%clk 0:01:56]} 24. h4 {[%clk 0:00:11]}  Bh3 {[%clk 0:01:55]} 25. Qe2 {[%clk 0:00:10]}  Bxg2 {[%clk 0:01:54]} 26. Kxg2 {[%clk 0:00:11]}  g6 {[%clk 0:01:52]} 27. Na2 {[%clk 0:00:08]}  Qb7 {[%clk 0:01:46]} 28. Ndc3 {[%clk 0:00:08]}  Kg7 {[%clk 0:01:33]} 29. Nc1 {[%clk 0:00:08]}  b4 {[%clk 0:01:22]} 30. axb4 {[%clk 0:00:06]}  Bxb4 {[%clk 0:01:22]} 31. N1a2 {[%clk 0:00:05]}  Bd6 {[%clk 0:01:20]} 32. Qc2 {[%clk 0:00:04]}  a5 {[%clk 0:01:12]} 33. Qa4 {[%clk 0:00:03]}  Qxb2 {[%clk 0:01:09]} 34. Qxa5 {[%clk 0:00:03]}  Ng4 {[%clk 0:01:10]} 35. Nd1 {[%clk 0:00:03]}  Qe2 {[%clk 0:00:54]} 36. Nac3 {[%clk 0:00:03]}  Qf3+ {[%clk 0:00:55]} 37. Kg1 {[%clk 0:00:03]}  Bxg3 {[%clk 0:00:53]} 38. fxg3 {[%clk 0:00:04]}  Qxg3+ {[%clk 0:00:53]} 39. Kf1 {[%clk 0:00:05]}  Qf3+ {[%clk 0:00:49]} 40. Ke1 {[%clk 0:00:04]}  Nxe3 {[%clk 0:00:50]} 41. Nxe3 {[%clk 0:00:03]}  Qxe3+ {[%clk 0:00:51]} 42. Ne2 {[%clk 0:00:03]}  Qb3 {[%clk 0:00:46]} 43. Qc3 {[%clk 0:00:03]}  Qb8 {[%clk 0:00:40]} 44. Qe3 {[%clk 0:00:02]}  Qh2 {[%clk 0:00:40]} 45. Qf4 {[%clk 0:00:02]}  Qh3 {[%clk 0:00:31]} 46. Qe5+ {[%clk 0:00:02]}  Kg8 {[%clk 0:00:31]} 47. Qxd5 {[%clk 0:00:02]}  Qxh4+ {[%clk 0:00:32]} 48. Kd1 {[%clk 0:00:02]}  Qg4 {[%clk 0:00:33]} 49. Qe5 {[%clk 0:00:02]}  h4 {[%clk 0:00:32]} 50. Qf4 {[%clk 0:00:02]}  Qh5 {[%clk 0:00:21]} 51. Qxe4 {[%clk 0:00:02]}  h3 {[%clk 0:00:22]} 52. Qh1 {[%clk 0:00:02]}  h2 {[%clk 0:00:22]} 53. Ke1 {[%clk 0:00:03]}  Qh3 {[%clk 0:00:22]} 54. Kf2 {[%clk 0:00:03]}  Kg7 {[%clk 0:00:22]} 55. Ng3 {[%clk 0:00:03]}  Qh4 {[%clk 0:00:20]} 56. Kg2 {[%clk 0:00:02]}  Qxd4 {[%clk 0:00:16]} 57. Kxh2 {[%clk 0:00:03]}  Qd2+ {[%clk 0:00:17]} 58. Qg2 {[%clk 0:00:03]}  Qh6+ {[%clk 0:00:17]} 59. Qh3 {[%clk 0:00:03]}  Qc1 {[%clk 0:00:18]} 60. Qg2 {[%clk 0:00:03]}  Qf4 {[%clk 0:00:18]} 61. Qh3 {[%clk 0:00:02]}  Qe5 {[%clk 0:00:18]} 62. Qg4 {[%clk 0:00:02]}  f5 {[%clk 0:00:18]} 63. Qf3 {[%clk 0:00:02]}  Kh6 {[%clk 0:00:18]} 64. Kg2 {[%clk 0:00:03]}  Qb2+ {[%clk 0:00:18]} 65. Qf2 {[%clk 0:00:03]}  Qe5 {[%clk 0:00:18]} 66. Qf3 {[%clk 0:00:03]}  Kg7 {[%clk 0:00:19]} 67. Qf2 {[%clk 0:00:03]}  Kf6 {[%clk 0:00:19]} 68. Qf3 {[%clk 0:00:03]}  g5 {[%clk 0:00:20]} 69. Nh5+ {[%clk 0:00:02]}  Kg6 {[%clk 0:00:20]} 70. Ng3 {[%clk 0:00:03]}  g4 {[%clk 0:00:19]} 71. Qxf5+ {[%clk 0:00:03]}  Qxf5 {[%clk 0:00:17]} 72. Nxf5 {[%clk 0:00:04]}  Kxf5 {[%clk 0:00:18]} 73. Kg3 {[%clk 0:00:04]}  Kg5 {[%clk 0:00:19]} 74. Kg2 {[%clk 0:00:05]}  Kf4 {[%clk 0:00:20]} 75. Kf2 {[%clk 0:00:05]}  Ke4 {[%clk 0:00:21]} 76. Kg3 {[%clk 0:00:05]}  Kf5 {[%clk 0:00:22]} 77. Kg2 {[%clk 0:00:06]}  Kg5 {[%clk 0:00:23]} 78. Kg3 {[%clk 0:00:06]}  Kh5 {[%clk 0:00:23]} 79. Kg2 {[%clk 0:00:06]}  Kh4 {[%clk 0:00:24]} 80. Kh2 {[%clk 0:00:07]}  g3+ {[%clk 0:00:25]} 81. Kg2 {[%clk 0:00:07]}  Kg4 {[%clk 0:00:26]} 82. Kg1 {[%clk 0:00:08]}  Kf3 {[%clk 0:00:27]} 83. Kf1 {[%clk 0:00:08]}  Ke3 {[%clk 0:00:27]} 84. Kg2 {[%clk 0:00:08]}  Kf4 {[%clk 0:00:28]} 85. Kg1 {[%clk 0:00:09]}  Kf3 {[%clk 0:00:29]} 86. Kf1 {[%clk 0:00:09]}  Kg4 {[%clk 0:00:30]} 87. Kg2 {[%clk 0:00:09]}  Kh4 {[%clk 0:00:31]} 88. Kg1 {[%clk 0:00:10]}  Kg5 {[%clk 0:00:31]} 89. Kg2 {[%clk 0:00:10]}  Kg4 {[%clk 0:00:32]} 90. Kg1 {[%clk 0:00:10]}  Kh3 {[%clk 0:00:33]} 91. Kh1 {[%clk 0:00:11]}  Kh4 {[%clk 0:00:34]} 92. Kg2 {[%clk 0:00:11]}  Kg5 {[%clk 0:00:34]} 0-1


[Site "https://www.chess.com"]

[Event "Titled Tuesday Blitz February 21 Early 2023"]
[White "Aggelis, Nikolaos"]
[Black "Matko, Ognjen"]
[WhiteFideId "4213220"]
[BlackFideId "14509717"]
[WhiteElo "2270"]
[BlackElo "2295"]
[Result "1-0"]
[Round "08"]
[TimeControl "180+2"]
[Date "2023.02.21"]
[WhiteClock "0:00:17"]
[BlackClock "0:00:06"]

1. d4 {[%clk 0:03:00]}  Nf6 {[%clk 0:02:59]} 2. g3 {[%clk 0:03:01]}  c5 {[%clk 0:02:58]} 3. d5 {[%clk 0:03:00]}  e6 {[%clk 0:02:57]} 4. Nc3 {[%clk 0:02:59]}  exd5 {[%clk 0:02:57]} 5. Nxd5 {[%clk 0:03:00]}  Nxd5 {[%clk 0:02:50]} 6. Qxd5 {[%clk 0:03:01]}  Be7 {[%clk 0:02:50]} 7. Bg2 {[%clk 0:02:59]}  O-O {[%clk 0:02:50]} 8. Nh3 {[%clk 0:02:59]}  Nc6 {[%clk 0:02:49]} 9. Nf4 {[%clk 0:02:47]}  Nd4 {[%clk 0:02:32]} 10. Be4 {[%clk 0:02:26]}  d6 {[%clk 0:02:11]} 11. c3 {[%clk 0:02:20]}  Ne6 {[%clk 0:01:54]} 12. O-O {[%clk 0:02:11]}  Nxf4 {[%clk 0:01:54]} 13. Bxf4 {[%clk 0:02:12]}  Be6 {[%clk 0:01:53]} 14. Qd3 {[%clk 0:02:09]}  g6 {[%clk 0:01:48]} 15. Rfd1 {[%clk 0:02:04]}  Qb6 {[%clk 0:01:36]} 16. b3 {[%clk 0:01:59]}  Rfd8 {[%clk 0:01:33]} 17. Bd5 {[%clk 0:01:50]}  Bf6 {[%clk 0:01:23]} 18. Rac1 {[%clk 0:01:48]}  Bxd5 {[%clk 0:01:13]} 19. Qxd5 {[%clk 0:01:47]}  Rd7 {[%clk 0:01:12]} 20. c4 {[%clk 0:01:43]}  Re8 {[%clk 0:01:07]} 21. Rc2 {[%clk 0:01:42]}  Re6 {[%clk 0:01:02]} 22. h4 {[%clk 0:01:33]}  h5 {[%clk 0:01:02]} 23. Qf3 {[%clk 0:01:22]}  Qd8 {[%clk 0:00:53]} 24. Rcd2 {[%clk 0:01:20]}  Qe8 {[%clk 0:00:52]} 25. e3 {[%clk 0:01:17]}  Qe7 {[%clk 0:00:43]} 26. Rd5 {[%clk 0:01:17]}  Be5 {[%clk 0:00:40]} 27. Bg5 {[%clk 0:01:00]}  Bf6 {[%clk 0:00:38]} 28. Kg2 {[%clk 0:00:41]}  Bxg5 {[%clk 0:00:35]} 29. Rxg5 {[%clk 0:00:42]}  Rf6 {[%clk 0:00:32]} 30. Qxh5 {[%clk 0:00:40]}  Qe4+ {[%clk 0:00:28]} 31. Kg1 {[%clk 0:00:35]}  Qc2 {[%clk 0:00:22]} 32. Rf1 {[%clk 0:00:27]}  d5 {[%clk 0:00:17]} 33. Qg4 {[%clk 0:00:27]}  Rdd6 {[%clk 0:00:12]} 34. cxd5 {[%clk 0:00:27]}  Qxa2 {[%clk 0:00:11]} 35. Qc8+ {[%clk 0:00:26]}  Kg7 {[%clk 0:00:10]} 36. h5 {[%clk 0:00:17]}  Qxb3 {[%clk 0:00:07]} 37. h6+ {[%clk 0:00:18]}  Kh7 {[%clk 0:00:06]} 38. Qf8 {[%clk 0:00:17]} 1-0


[Site "https://www.chess.com"]

[Event "Titled Tuesday Blitz February 21 Early 2023"]
[White "Ibadov, Dashgyn"]
[Black "Ziatdinov, Raset"]
[WhiteFideId "24107514"]
[BlackFideId "2015323"]
[WhiteElo "2391"]
[BlackElo "2101"]
[Result "0-1"]
[Round "08"]
[TimeControl "180+2"]
[Date "2023.02.21"]
[WhiteClock "0:00:01"]
[BlackClock "0:01:06"]

1. e4 {[%clk 0:03:00]}  c5 {[%clk 0:02:59]} 2. Nf3 {[%clk 0:02:59]}  Nc6 {[%clk 0:02:59]} 3. Bb5 {[%clk 0:02:58]}  g6 {[%clk 0:02:58]} 4. O-O {[%clk 0:02:58]}  Bg7 {[%clk 0:02:58]} 5. c3 {[%clk 0:02:56]}  Nh6 {[%clk 0:02:55]} 6. d4 {[%clk 0:02:52]}  cxd4 {[%clk 0:02:53]} 7. cxd4 {[%clk 0:02:53]}  O-O {[%clk 0:02:52]} 8. d5 {[%clk 0:02:52]}  Na5 {[%clk 0:02:42]} 9. Nc3 {[%clk 0:02:20]}  a6 {[%clk 0:02:41]} 10. Bd3 {[%clk 0:02:20]}  b5 {[%clk 0:02:38]} 11. h3 {[%clk 0:02:14]}  d6 {[%clk 0:02:37]} 12. Be3 {[%clk 0:02:08]}  f5 {[%clk 0:02:35]} 13. Qd2 {[%clk 0:02:08]}  fxe4 {[%clk 0:02:31]} 14. Nxe4 {[%clk 0:02:01]}  Nf5 {[%clk 0:02:31]} 15. Bf4 {[%clk 0:01:51]}  Nc4 {[%clk 0:02:27]} 16. Bxc4 {[%clk 0:01:48]}  bxc4 {[%clk 0:02:26]} 17. Rfe1 {[%clk 0:01:38]}  Rb8 {[%clk 0:02:24]} 18. Rab1 {[%clk 0:01:32]}  Qb6 {[%clk 0:02:10]} 19. Nc3 {[%clk 0:01:16]}  h6 {[%clk 0:01:36]} 20. Re2 {[%clk 0:00:56]}  g5 {[%clk 0:01:36]} 21. Bh2 {[%clk 0:00:55]}  Nd4 {[%clk 0:01:27]} 22. Nxd4 {[%clk 0:00:52]}  Bxd4 {[%clk 0:01:27]} 23. Bg3 {[%clk 0:00:38]}  Bf5 {[%clk 0:01:26]} 24. Rbe1 {[%clk 0:00:36]}  Bf6 {[%clk 0:01:20]} 25. Kh2 {[%clk 0:00:15]}  Qxb2 {[%clk 0:01:14]} 26. Qxb2 {[%clk 0:00:10]}  Rxb2 {[%clk 0:01:14]} 27. Rxb2 {[%clk 0:00:08]}  Bxc3 {[%clk 0:01:14]} 28. Rbe2 {[%clk 0:00:05]}  Bxe1 {[%clk 0:01:13]} 29. Rxe1 {[%clk 0:00:06]}  c3 {[%clk 0:01:13]} 30. f4 {[%clk 0:00:02]}  c2 {[%clk 0:01:11]} 31. fxg5 {[%clk 0:00:02]}  hxg5 {[%clk 0:01:11]} 32. Bf2 {[%clk 0:00:01]}  Rb8 {[%clk 0:01:07]} 33. Be3 {[%clk 0:00:01]}  g4 {[%clk 0:01:06]} 34. hxg4 {[%clk 0:00:01]}  Bxg4 {[%clk 0:01:06]} 0-1


[Site "https://www.chess.com"]

[Event "Titled Tuesday Blitz February 21 Early 2023"]
[White "Lerch, Philipp"]
[Black "Lehtosaari, Mauri"]
[WhiteFideId "4654129"]
[BlackFideId "501999"]
[WhiteElo "2305"]
[BlackElo "2176"]
[Result "1/2-1/2"]
[Round "08"]
[TimeControl "180+2"]
[Date "2023.02.21"]
[WhiteClock "0:00:11"]
[BlackClock "0:00:22"]

1. b3 {[%clk 0:03:00]}  Nf6 {[%clk 0:02:59]} 2. Bb2 {[%clk 0:03:00]}  d5 {[%clk 0:02:59]} 3. e3 {[%clk 0:02:52]}  Bg4 {[%clk 0:02:58]} 4. Be2 {[%clk 0:02:49]}  Bxe2 {[%clk 0:02:56]} 5. Qxe2 {[%clk 0:02:50]}  c6 {[%clk 0:02:55]} 6. Nc3 {[%clk 0:02:48]}  Nbd7 {[%clk 0:02:55]} 7. O-O-O {[%clk 0:02:48]}  e6 {[%clk 0:02:54]} 8. f4 {[%clk 0:02:46]}  Qa5 {[%clk 0:02:53]} 9. g4 {[%clk 0:02:45]}  Ba3 {[%clk 0:02:52]} 10. g5 {[%clk 0:02:44]}  Bxb2+ {[%clk 0:02:47]} 11. Kxb2 {[%clk 0:02:44]}  Ng8 {[%clk 0:02:42]} 12. Nf3 {[%clk 0:02:38]}  Ne7 {[%clk 0:02:40]} 13. h4 {[%clk 0:02:38]}  O-O-O {[%clk 0:02:35]} 14. h5 {[%clk 0:02:38]}  Nf5 {[%clk 0:02:31]} 15. Rhg1 {[%clk 0:02:23]}  Kb8 {[%clk 0:02:05]} 16. d3 {[%clk 0:01:53]}  Qb6 {[%clk 0:02:01]} 17. e4 {[%clk 0:01:49]}  Nd6 {[%clk 0:01:48]} 18. Na4 {[%clk 0:01:39]}  Qc7 {[%clk 0:01:47]} 19. Ne5 {[%clk 0:01:29]}  Rdf8 {[%clk 0:01:42]} 20. Nxd7+ {[%clk 0:01:19]}  Qxd7 {[%clk 0:01:41]} 21. e5 {[%clk 0:01:20]}  Nf5 {[%clk 0:01:40]} 22. Nc5 {[%clk 0:01:19]}  Qc7 {[%clk 0:01:38]} 23. d4 {[%clk 0:01:19]}  Ka8 {[%clk 0:01:37]} 24. c3 {[%clk 0:01:14]}  b6 {[%clk 0:01:33]} 25. Nd3 {[%clk 0:01:11]}  c5 {[%clk 0:01:30]} 26. Qf2 {[%clk 0:01:06]}  cxd4 {[%clk 0:01:22]} 27. cxd4 {[%clk 0:01:07]}  Rc8 {[%clk 0:01:22]} 28. Rc1 {[%clk 0:01:08]}  Qe7 {[%clk 0:01:22]} 29. a3 {[%clk 0:00:48]}  g6 {[%clk 0:01:13]} 30. hxg6 {[%clk 0:00:46]}  hxg6 {[%clk 0:01:13]} 31. Rxc8+ {[%clk 0:00:44]}  Rxc8 {[%clk 0:01:12]} 32. Rc1 {[%clk 0:00:44]}  Rxc1 {[%clk 0:01:11]} 33. Nxc1 {[%clk 0:00:45]}  Qc7 {[%clk 0:01:09]} 34. Ne2 {[%clk 0:00:42]}  Qc6 {[%clk 0:01:02]} 35. Nc3 {[%clk 0:00:39]}  Kb7 {[%clk 0:00:58]} 36. Kc2 {[%clk 0:00:37]}  Qc8 {[%clk 0:00:56]} 37. Kb2 {[%clk 0:00:21]}  Qh8 {[%clk 0:00:55]} 38. Nb5 {[%clk 0:00:20]}  a6 {[%clk 0:00:46]} 39. Nc3 {[%clk 0:00:20]}  Qh1 {[%clk 0:00:41]} 40. Qd2 {[%clk 0:00:16]}  Qf3 {[%clk 0:00:37]} 41. a4 {[%clk 0:00:13]}  Qe3 {[%clk 0:00:30]} 42. Qxe3 {[%clk 0:00:12]}  Nxe3 {[%clk 0:00:31]} 43. Ne2 {[%clk 0:00:12]}  Kc6 {[%clk 0:00:29]} 44. Kc3 {[%clk 0:00:12]}  Nf5 {[%clk 0:00:28]} 45. Kd3 {[%clk 0:00:13]}  a5 {[%clk 0:00:27]} 46. Nc3 {[%clk 0:00:12]}  Ng3 {[%clk 0:00:26]} 47. Nd1 {[%clk 0:00:12]}  Nh5 {[%clk 0:00:26]} 48. Ke3 {[%clk 0:00:12]}  Ng3 {[%clk 0:00:26]} 49. Nc3 {[%clk 0:00:10]}  Nf5+ {[%clk 0:00:26]} 50. Kd3 {[%clk 0:00:10]}  Ng3 {[%clk 0:00:25]} 51. Nb5 {[%clk 0:00:10]}  Nf5 {[%clk 0:00:26]} 52. Na7+ {[%clk 0:00:09]}  Kb7 {[%clk 0:00:26]} 53. Nb5 {[%clk 0:00:10]}  Kc6 {[%clk 0:00:26]} 54. Na7+ {[%clk 0:00:10]}  Kd7 {[%clk 0:00:26]} 55. Nb5 {[%clk 0:00:11]}  Kc6 {[%clk 0:00:22]} 1/2-1/2


[Site "https://www.chess.com"]

[Event "Titled Tuesday Blitz February 21 Early 2023"]
[White "Ilinca Ilinca, Felix Antonio"]
[Black "I_KID_you_not"]
[WhiteFideId "54764998"]
[WhiteElo "2266"]
[BlackElo "2364"]
[Result "1-0"]
[Round "08"]
[TimeControl "180+2"]
[Date "2023.02.21"]
[WhiteClock "0:01:02"]
[BlackClock "0:00:33"]

1. e4 {[%clk 0:03:00]}  c5 {[%clk 0:02:59]} 2. Nf3 {[%clk 0:03:00]}  Nc6 {[%clk 0:03:00]} 3. Bb5 {[%clk 0:03:01]}  g6 {[%clk 0:02:59]} 4. c3 {[%clk 0:02:59]}  Bg7 {[%clk 0:02:57]} 5. O-O {[%clk 0:02:57]}  Nf6 {[%clk 0:02:56]} 6. e5 {[%clk 0:02:56]}  Nd5 {[%clk 0:02:55]} 7. d4 {[%clk 0:02:56]}  cxd4 {[%clk 0:02:52]} 8. cxd4 {[%clk 0:02:56]}  O-O {[%clk 0:02:52]} 9. Nc3 {[%clk 0:02:54]}  Nxc3 {[%clk 0:02:52]} 10. bxc3 {[%clk 0:02:55]}  d6 {[%clk 0:02:52]} 11. Re1 {[%clk 0:02:16]}  Bg4 {[%clk 0:02:39]} 12. exd6 {[%clk 0:02:10]}  Qxd6 {[%clk 0:02:37]} 13. h3 {[%clk 0:02:10]}  Be6 {[%clk 0:02:31]} 14. Ng5 {[%clk 0:02:10]}  Bd5 {[%clk 0:02:27]} 15. Qg4 {[%clk 0:02:00]}  a6 {[%clk 0:02:19]} 16. Bd3 {[%clk 0:01:55]}  Na5 {[%clk 0:02:06]} 17. Qh4 {[%clk 0:01:49]}  h6 {[%clk 0:02:02]} 18. Ne4 {[%clk 0:01:46]}  Qc6 {[%clk 0:01:49]} 19. Bxh6 {[%clk 0:01:41]}  Bxe4 {[%clk 0:01:49]} 20. Bxe4 {[%clk 0:01:37]}  Qxc3 {[%clk 0:01:49]} 21. Bxg6 {[%clk 0:01:09]}  fxg6 {[%clk 0:01:06]} 22. Bxg7 {[%clk 0:01:07]}  Kxg7 {[%clk 0:01:06]} 23. Rac1 {[%clk 0:01:06]}  Qa3 {[%clk 0:00:37]} 24. Rxe7+ {[%clk 0:01:04]}  Rf7 {[%clk 0:00:37]} 25. Rxf7+ {[%clk 0:01:04]}  Kxf7 {[%clk 0:00:37]} 26. Rc7+ {[%clk 0:01:04]}  Ke6 {[%clk 0:00:35]} 27. Qe4+ {[%clk 0:01:02]}  Kf6 {[%clk 0:00:33]} 28. Qe5# {[%clk 0:01:02]} 1-0


[Site "https://www.chess.com"]

[Event "Titled Tuesday Blitz February 21 Early 2023"]
[White "Liu, Casper"]
[Black "Weetik, Vjacheslav"]
[WhiteFideId "1454153"]
[BlackFideId "4153472"]
[WhiteElo "2278"]
[BlackElo "2423"]
[Result "0-1"]
[Round "08"]
[TimeControl "180+2"]
[Date "2023.02.21"]
[WhiteClock "0:00:50"]
[BlackClock "0:00:24"]

1. d4 {[%clk 0:02:56]}  Nf6 {[%clk 0:02:58]} 2. Bf4 {[%clk 0:02:56]}  c5 {[%clk 0:02:52]} 3. e3 {[%clk 0:02:56]}  g6 {[%clk 0:02:44]} 4. dxc5 {[%clk 0:02:55]}  Qa5+ {[%clk 0:02:36]} 5. Nd2 {[%clk 0:02:54]}  Qxc5 {[%clk 0:02:34]} 6. Ngf3 {[%clk 0:02:55]}  Nc6 {[%clk 0:02:31]} 7. a3 {[%clk 0:02:54]}  e5 {[%clk 0:02:10]} 8. Nb3 {[%clk 0:02:44]}  Qe7 {[%clk 0:02:06]} 9. Bg5 {[%clk 0:02:44]}  Bg7 {[%clk 0:02:00]} 10. h4 {[%clk 0:02:43]}  h6 {[%clk 0:01:58]} 11. Bxf6 {[%clk 0:02:42]}  Bxf6 {[%clk 0:01:58]} 12. h5 {[%clk 0:02:42]}  g5 {[%clk 0:01:57]} 13. Qd5 {[%clk 0:02:42]}  O-O {[%clk 0:01:17]} 14. Bd3 {[%clk 0:02:41]}  Bg7 {[%clk 0:01:11]} 15. Nc5 {[%clk 0:01:33]}  d6 {[%clk 0:01:02]} 16. Ne4 {[%clk 0:01:33]}  Rd8 {[%clk 0:00:42]} 17. Ng3 {[%clk 0:01:26]}  Be6 {[%clk 0:00:39]} 18. Qe4 {[%clk 0:01:26]}  d5 {[%clk 0:00:37]} 19. Qh7+ {[%clk 0:01:26]}  Kf8 {[%clk 0:00:37]} 20. Bf5 {[%clk 0:01:10]}  e4 {[%clk 0:00:30]} 21. Bxe6 {[%clk 0:01:08]}  fxe6 {[%clk 0:00:25]} 22. Nh2 {[%clk 0:00:50]}  Bc3+ {[%clk 0:00:24]} 0-1


[Site "https://www.chess.com"]

[Event "Titled Tuesday Blitz February 21 Early 2023"]
[White "Valle Maytin, Luis Enrique"]
[Black "Yurovskykh, Oleksandr"]
[WhiteFideId "3503666"]
[BlackFideId "14134020"]
[WhiteElo "2241"]
[BlackElo "2328"]
[Result "0-1"]
[Round "08"]
[TimeControl "180+2"]
[Date "2023.02.21"]
[WhiteClock "0:00:03"]
[BlackClock "0:00:40"]

1. e4 {[%clk 0:03:00]}  d5 {[%clk 0:02:55]} 2. exd5 {[%clk 0:03:00]}  Qxd5 {[%clk 0:02:56]} 3. Nc3 {[%clk 0:03:00]}  Qd8 {[%clk 0:02:56]} 4. Bc4 {[%clk 0:02:58]}  c5 {[%clk 0:02:56]} 5. d3 {[%clk 0:02:59]}  Nc6 {[%clk 0:02:56]} 6. Nge2 {[%clk 0:02:57]}  Nf6 {[%clk 0:02:56]} 7. Be3 {[%clk 0:02:52]}  e6 {[%clk 0:02:56]} 8. h3 {[%clk 0:02:46]}  Be7 {[%clk 0:02:56]} 9. O-O {[%clk 0:02:46]}  O-O {[%clk 0:02:52]} 10. Ng3 {[%clk 0:02:46]}  a6 {[%clk 0:02:51]} 11. a4 {[%clk 0:02:46]}  b6 {[%clk 0:02:46]} 12. Nge4 {[%clk 0:02:39]}  Bb7 {[%clk 0:02:45]} 13. Rb1 {[%clk 0:02:26]}  Nd4 {[%clk 0:02:38]} 14. Nxf6+ {[%clk 0:02:26]}  Bxf6 {[%clk 0:02:39]} 15. Ne4 {[%clk 0:02:27]}  Be7 {[%clk 0:02:38]} 16. c3 {[%clk 0:02:25]}  Nf5 {[%clk 0:02:36]} 17. Qe2 {[%clk 0:02:07]}  Nxe3 {[%clk 0:02:35]} 18. fxe3 {[%clk 0:02:07]}  Qd7 {[%clk 0:02:27]} 19. Ng3 {[%clk 0:02:05]}  Qxa4 {[%clk 0:02:26]} 20. e4 {[%clk 0:01:57]}  Qd7 {[%clk 0:02:19]} 21. Bb3 {[%clk 0:01:51]}  Rad8 {[%clk 0:02:18]} 22. Bc2 {[%clk 0:01:51]}  f6 {[%clk 0:02:08]} 23. Rbd1 {[%clk 0:01:44]}  Bd6 {[%clk 0:01:58]} 24. Nh5 {[%clk 0:00:57]}  Qe7 {[%clk 0:01:20]} 25. Bb3 {[%clk 0:00:56]}  g6 {[%clk 0:01:16]} 26. Qg4 {[%clk 0:00:43]}  Kh8 {[%clk 0:01:14]} 27. Nf4 {[%clk 0:00:41]}  Bxf4 {[%clk 0:01:14]} 28. Rxf4 {[%clk 0:00:37]}  e5 {[%clk 0:01:14]} 29. Rff1 {[%clk 0:00:29]}  Rd6 {[%clk 0:01:13]} 30. Qg3 {[%clk 0:00:21]}  Rfd8 {[%clk 0:01:11]} 31. Bc2 {[%clk 0:00:21]}  Kg7 {[%clk 0:01:11]} 32. Kh2 {[%clk 0:00:20]}  Bc8 {[%clk 0:01:11]} 33. Rf3 {[%clk 0:00:20]}  Be6 {[%clk 0:01:11]} 34. Rdf1 {[%clk 0:00:20]}  Bg8 {[%clk 0:01:12]} 35. R3f2 {[%clk 0:00:20]}  a5 {[%clk 0:01:12]} 36. h4 {[%clk 0:00:20]}  h6 {[%clk 0:01:11]} 37. Rf3 {[%clk 0:00:15]}  h5 {[%clk 0:01:09]} 38. R3f2 {[%clk 0:00:15]}  Rf8 {[%clk 0:01:09]} 39. Rf3 {[%clk 0:00:15]}  Be6 {[%clk 0:01:10]} 40. R3f2 {[%clk 0:00:14]}  Bg4 {[%clk 0:01:10]} 41. Qe3 {[%clk 0:00:14]}  Qd7 {[%clk 0:01:10]} 42. Rd2 {[%clk 0:00:13]}  Rd8 {[%clk 0:01:09]} 43. Rdf2 {[%clk 0:00:11]}  Qe6 {[%clk 0:01:06]} 44. Rxf6 {[%clk 0:00:11]}  Qxf6 {[%clk 0:01:06]} 45. Rxf6 {[%clk 0:00:12]}  Rxf6 {[%clk 0:01:06]} 46. Kg3 {[%clk 0:00:11]}  Rf4 {[%clk 0:00:59]} 47. Bb3 {[%clk 0:00:11]}  Bc8 {[%clk 0:00:54]} 48. Bd5 {[%clk 0:00:10]}  Rdf8 {[%clk 0:00:51]} 49. d4 {[%clk 0:00:06]}  Rg4+ {[%clk 0:00:51]} 50. Kh2 {[%clk 0:00:06]}  Rf1 {[%clk 0:00:41]} 51. dxc5 {[%clk 0:00:04]}  Rxh4+ {[%clk 0:00:40]} 52. Kg3 {[%clk 0:00:04]}  Rhh1 {[%clk 0:00:40]} 53. cxb6 {[%clk 0:00:03]}  h4# {[%clk 0:00:40]} 0-1


[Site "https://www.chess.com"]

[Event "Titled Tuesday Blitz February 21 Early 2023"]
[White "Shubenkova, Veronika"]
[Black "gshwbedhkhd"]
[WhiteFideId "44124040"]
[WhiteElo "1960"]
[BlackElo "2556"]
[Result "0-1"]
[Round "08"]
[TimeControl "180+2"]
[Date "2023.02.21"]
[WhiteClock "0:01:26"]
[BlackClock "0:00:08"]

1. e4 {[%clk 0:03:00]}  c5 {[%clk 0:02:59]} 2. Nc3 {[%clk 0:03:00]}  e6 {[%clk 0:02:58]} 3. g3 {[%clk 0:03:00]}  Nc6 {[%clk 0:02:58]} 4. Bg2 {[%clk 0:03:00]}  g6 {[%clk 0:02:56]} 5. d3 {[%clk 0:03:01]}  Bg7 {[%clk 0:02:56]} 6. f4 {[%clk 0:03:01]}  d6 {[%clk 0:02:53]} 7. Nf3 {[%clk 0:03:01]}  Nge7 {[%clk 0:02:54]} 8. Be3 {[%clk 0:03:01]}  O-O {[%clk 0:02:54]} 9. O-O {[%clk 0:03:01]}  Rb8 {[%clk 0:02:54]} 10. Rb1 {[%clk 0:03:01]}  b5 {[%clk 0:02:54]} 11. Ne2 {[%clk 0:03:02]}  b4 {[%clk 0:02:52]} 12. g4 {[%clk 0:02:58]}  f5 {[%clk 0:02:46]} 13. exf5 {[%clk 0:02:57]}  gxf5 {[%clk 0:02:41]} 14. g5 {[%clk 0:02:50]}  Ba6 {[%clk 0:02:05]} 15. Nd2 {[%clk 0:02:49]}  e5 {[%clk 0:01:56]} 16. fxe5 {[%clk 0:02:47]}  dxe5 {[%clk 0:01:57]} 17. Bxc5 {[%clk 0:02:46]}  Rf7 {[%clk 0:01:47]} 18. Nb3 {[%clk 0:02:42]}  Bb7 {[%clk 0:01:42]} 19. Ng3 {[%clk 0:02:40]}  Qc7 {[%clk 0:01:25]} 20. Qh5 {[%clk 0:02:37]}  a5 {[%clk 0:01:10]} 21. Rbe1 {[%clk 0:02:24]}  a4 {[%clk 0:01:07]} 22. Nd2 {[%clk 0:02:23]}  Rbf8 {[%clk 0:00:53]} 23. Nc4 {[%clk 0:02:22]}  Nd4 {[%clk 0:00:45]} 24. Bd6 {[%clk 0:02:17]}  Qc8 {[%clk 0:00:34]} 25. Bxe7 {[%clk 0:02:09]}  Bxg2 {[%clk 0:00:30]} 26. Bxf8 {[%clk 0:02:08]}  Qxf8 {[%clk 0:00:24]} 27. Kxg2 {[%clk 0:02:07]}  Nxc2 {[%clk 0:00:25]} 28. Re2 {[%clk 0:02:05]}  Nd4 {[%clk 0:00:23]} 29. Ref2 {[%clk 0:02:05]}  e4 {[%clk 0:00:15]} 30. dxe4 {[%clk 0:02:01]}  f4 {[%clk 0:00:15]} 31. Nf5 {[%clk 0:02:01]}  Nxf5 {[%clk 0:00:14]} 32. exf5 {[%clk 0:02:01]}  Rxf5 {[%clk 0:00:14]} 33. Qg4 {[%clk 0:01:58]}  Qf7 {[%clk 0:00:11]} 34. Nd6 {[%clk 0:01:55]}  Qd5+ {[%clk 0:00:10]} 35. Kg1 {[%clk 0:01:55]}  Rxg5 {[%clk 0:00:11]} 36. Qxg5 {[%clk 0:01:44]}  Qxg5+ {[%clk 0:00:12]} 37. Rg2 {[%clk 0:01:41]}  Qc5+ {[%clk 0:00:11]} 38. Kh1 {[%clk 0:01:40]}  Qxd6 {[%clk 0:00:11]} 39. Rfg1 {[%clk 0:01:41]}  Qd5 {[%clk 0:00:11]} 40. h4 {[%clk 0:01:36]}  Kh8 {[%clk 0:00:11]} 41. Kh2 {[%clk 0:01:36]}  Be5 {[%clk 0:00:11]} 42. Rg5 {[%clk 0:01:30]}  f3+ {[%clk 0:00:10]} 43. Kh3 {[%clk 0:01:30]}  f2 {[%clk 0:00:09]} 44. Rc1 {[%clk 0:01:26]}  Qf3+ {[%clk 0:00:08]} 0-1


[Site "https://www.chess.com"]